bitfinex/quotes_SOLUSD_20260113
["timestamp","ask_amount","ask_price","bid_price","bid_amount"]
[1768277583585,0.1,138.81,138.8,0.67380451]
[1768277583784,16.6852149,138.83,138.8,0.67380451]
[1768277583984,3.3262149,138.82,138.78,0.67380451]
[1768277584184,0.64651917,138.8,138.76,7.20647263]
[1768277584393,0.10994983,138.79,138.76,7.20647263]
[1768277584597,3.98379451,138.8,138.76,11.25504787]
[1768277584813,0.65757961,138.8,138.76,11.25504787]
[1768277585122,0.099,138.81,138.77,4.04857524]
[1768277585517,0.099,138.81,138.78,3.3262149]
[1768277585904,0.099,138.81,138.78,4.04857524]
[1768277586109,24.44692012,138.83,138.78,4.04857524]
[1768277587021,0.099,138.82,138.79,3.3262149]
[1768277587224,13.26,138.83,138.79,0.72236034]
[1768277587424,16.6852149,138.83,138.79,4.04857524]
[1768277588218,13.359,138.83,138.79,11.25361426]
[1768277588430,13.26,138.83,138.8,0.72236034]
[1768277588718,16.5862149,138.83,138.8,0.72236034]
[1768277589122,13.26,138.83,138.8,0.72236034]
[1768277589625,13.26,138.83,138.81,0.72236034]
[1768277589826,0.1,138.83,138.81,0.72236034]
[1768277591236,16.5862149,138.84,138.82,0.72236034]
[1768277591438,0.30303114,138.83,138.79,10.53125392]
[1768277591632,0.30303114,138.83,138.79,7.20503902]
[1768277591833,0.30303114,138.83,138.79,10.53125392]
[1768277592214,0.65048901,138.82,138.79,7.20503902]
[1768277592430,0.65048901,138.82,138.79,10.53125392]
[1768277592712,0.65048901,138.82,138.77,25.22063072]
[1768277592916,0.65048901,138.82,138.79,3.3262149]
[1768277593341,3.3262149,138.83,138.8,0.72236034]
[1768277593842,20.71185304,138.84,138.8,0.72236034]
[1768277594035,24.03806794,138.84,138.8,0.72236034]
[1768277594539,23.78876374,138.84,138.8,0.72236034]
[1768277596639,20.71867343,138.84,138.8,0.7022128]
[1768277596846,24.04488833,138.84,138.8,0.7022128]
[1768277597343,16.84233949,138.84,138.8,0.7022128]
[1768277597844,16.5862149,138.84,138.81,0.7022128]
[1768277598141,0.69692649,138.83,138.8,10.53078684]
[1768277598938,16.5862149,138.84,138.81,0.7022128]
[1768277599241,0.69256255,138.83,138.8,10.53078684]
[1768277601841,17.28759394,138.84,138.8,10.53078684]
[1768277602025,16.5862149,138.84,138.81,0.7022128]
[1768277602338,13.26,138.84,138.81,0.7022128]
[1768277602737,16.5862149,138.84,138.81,0.7022128]
[1768277604230,13.26,138.84,138.81,0.7022128]
[1768277604543,16.5862149,138.84,138.81,0.7022128]
[1768277605245,23.78885233,138.84,138.81,0.7022128]
[1768277605444,3.59106781,138.83,138.78,4.0284277]
[1768277605742,3.3262149,138.83,138.79,0.7022128]
[1768277605939,0.69692649,138.82,138.78,11.233695]
[1768277606123,0.69692649,138.82,138.79,0.7022128]
[1768277606318,3.3262149,138.83,138.79,0.7022128]
[1768277606541,3.58233949,138.83,138.79,0.7022128]
[1768277606842,3.3262149,138.83,138.79,0.7022128]
[1768277607656,3.59106781,138.8,138.77,7.20605641]
[1768277607953,3.3262149,138.79,138.76,0.7022128]
[1768277608131,13.16,138.81,138.75,3.3262149]
[1768277608132,3.3262149,138.8,138.77,0.7022128]
[1768277608632,3.3262149,138.8,138.76,7.20636175]
[1768277608825,3.3262149,138.8,138.76,10.53257665]
[1768277609255,3.3262149,138.8,138.77,0.7022128]
[1768277609426,13.16,138.81,138.78,0.7022128]
[1768277610045,13.16,138.81,138.78,4.0284277]
[1768277610239,13.16,138.81,138.78,0.7022128]
[1768277612354,16.4862149,138.81,138.78,0.7022128]
[1768277614258,13.16,138.81,138.79,0.7022128]
[1768277614558,16.4862149,138.81,138.79,0.7022128]
[1768277614850,16.4862149,138.81,138.76,7.90608392]
[1768277614851,13.26391275,138.81,138.76,7.90608392]
[1768277615039,0.10872774,138.79,138.76,7.20654155]
[1768277615236,3.3262149,138.8,138.76,7.20654155]
[1768277615442,3.92145274,138.8,138.76,7.90608392]
[1768277615642,0.099,138.79,138.76,7.20654155]
[1768277616227,3.4252149,138.8,138.76,7.90608392]
[1768277616747,3.3262149,138.8,138.77,0.69954237]
[1768277618135,3.3262149,138.79,138.77,0.69954237]
[1768277619148,3.3262149,138.78,138.77,0.69954237]
[1768277619338,3.3262149,138.78,138.73,0.69954237]
[1768277619339,5.062761,138.77,138.73,0.69954237]
[1768277619539,3.3262149,138.75,138.73,0.69954237]
[1768277620742,3.3262149,138.74,138.73,0.69954237]
[1768277621468,3.3262149,138.75,138.73,0.69954237]
[1768277625033,3.3262149,138.76,138.74,0.69954237]
[1768277625246,0.69762644,138.76,138.73,10.53445273]
[1768277626038,0.69762644,138.76,138.74,3.3262149]
[1768277626359,0.69762644,138.77,138.75,3.3262149]
[1768277627164,4.02384134,138.79,138.75,4.02575727]
[1768277627461,4.02384134,138.79,138.76,0.69954237]
[1768277627462,3.3262149,138.79,138.76,0.69954237]
[1768277628244,10.53141436,138.79,138.76,0.69954237]
[1768277628456,3.3262149,138.78,138.76,0.69954237]
[1768277629146,10.53141436,138.79,138.76,0.69954237]
[1768277629351,9.33375124,138.79,138.76,0.69954237]
[1768277630062,9.33375124,138.79,138.74,9.33589136]
[1768277630063,0.69762644,138.78,138.74,9.33589136]
[1768277630640,9.33375124,138.79,138.75,0.69954237]
[1768277631562,2.12855178,138.78,138.75,0.69954237]
[1768277631864,2.82617822,138.78,138.75,0.69954237]
[1768277633463,0.69762644,138.78,138.75,0.69954237]
[1768277633654,2.82617822,138.77,138.73,9.33672091]
[1768277633843,0.69762644,138.76,138.73,9.33672091]
[1768277634041,0.66762645,138.76,138.73,9.33672091]
[1768277635259,0.63762646,138.76,138.73,9.33672091]
[1768277636859,2.12855178,138.77,138.73,10.03626328]
[1768277637576,2.7251371,138.77,138.73,10.03626328]
[1768277637757,0.59658532,138.77,138.73,10.03626328]
[1768277638078,2.12855178,138.77,138.73,10.03626328]
[1768277638270,2.7251371,138.77,138.73,10.03626328]
[1768277638565,0.69661603,138.76,138.73,9.33672091]
[1768277639170,2.82516781,138.76,138.73,7.20816913]
[1768277639676,2.12855178,138.76,138.74,0.69954237]
[1768277639855,2.7251371,138.76,138.73,7.20816913]
[1768277640171,0.69661603,138.75,138.72,7.20863308]
[1768277640347,0.59758563,138.74,138.72,6.50598083]
[1768277640551,2.12855178,138.75,138.72,6.50598083]
[1768277640777,2.16815179,138.75,138.72,6.50598083]
[1768277641653,2.12855178,138.75,138.72,7.2055232]
[1768277642477,2.12855178,138.75,138.73,0.69954237]
[1768277642800,2.12855178,138.74,138.73,0.69954237]
[1768277643157,2.12855178,138.74,138.71,0.69954237]
[1768277643684,2.12855178,138.74,138.71,7.90881353]
[1768277643993,2.12855178,138.74,138.72,0.69954237]
[1768277644283,2.12855178,138.75,138.72,0.69954237]
[1768277644882,4.963761,138.79,138.74,0.7235205]
[1768277645177,13.16,138.78,138.75,0.7235205]
[1768277645583,15.28855178,138.78,138.75,0.7235205]
[1768277645753,0.55240576,138.77,138.74,2.12855178]
[1768277645956,15.28855178,138.78,138.74,2.85207228]
[1768277646155,13.19960001,138.78,138.74,2.85207228]
[1768277646458,13.19960001,138.78,138.75,2.12855178]
[1768277648389,13.16,138.78,138.76,0.7235205]
[1768277649660,13.16,138.78,138.75,2.12855178]
[1768277650383,13.71758561,138.78,138.75,2.12855178]
[1768277651186,13.16,138.78,138.76,0.7235205]
[1768277651787,13.71240576,138.78,138.74,10.05940552]
[1768277654284,13.16,138.78,138.75,0.65429164]
[1768277655169,13.16,138.78,138.76,0.65429164]
[1768277658497,13.16,138.78,138.74,9.99017666]
[1768277658792,13.16,138.78,138.75,0.65429164]
[1768277659806,0.04975408,138.77,138.74,9.33588502]
[1768277660307,13.71758561,138.78,138.74,9.99017666]
[1768277660500,13.16,138.78,138.75,0.65429164]
[1768277661012,13.16,138.78,138.76,0.65429164]
[1768277662208,0.04472807,138.77,138.75,7.2072039]
[1768277662806,13.16,138.78,138.75,7.2072039]
[1768277663006,13.1174955,138.78,138.75,7.2072039]
[1768277663200,13.1174955,138.78,138.75,7.86149554]
[1768277663608,13.1174955,138.78,138.75,7.2072039]
[1768277664101,13.1174955,138.78,138.75,9.33575568]
[1768277664403,13.1174955,138.78,138.75,9.99004732]
[1768277665308,10.85758892,138.78,138.76,0.65429164]
[1768277665707,10.85758892,138.78,138.75,9.33575568]
[1768277665708,10.90187418,138.78,138.75,9.33575568]
[1768277665903,0.50348657,138.77,138.74,9.33625464]
[1768277666107,2.12855178,138.79,138.75,0.65429164]
[1768277667213,9.33382872,138.79,138.75,0.65429164]
[1768277668212,22.49327397,138.8,138.76,0.65429164]
[1768277668410,15.28855178,138.8,138.76,0.65429164]
[1768277668789,2.12855178,138.8,138.76,0.65429164]
[1768277668984,15.28855178,138.8,138.77,0.65429164]
[1768277669905,0.50812497,138.79,138.77,2.12855178]
[1768277670312,13.16,138.8,138.77,2.78284342]
[1768277670899,2.64140932,138.81,138.77,2.78284342]
[1768277671812,2.64140932,138.81,138.77,0.65429164]
[1768277672213,2.12855178,138.8,138.77,0.65429164]
[1768277672399,0.51285754,138.81,138.77,0.65429164]
[1768277672697,2.12855178,138.8,138.77,0.65429164]
[1768277673825,2.16815179,138.8,138.76,9.33522483]
[1768277674822,0.50812497,138.79,138.76,9.33522483]
[1768277675021,2.12855178,138.8,138.76,10.04752361]
[1768277675526,2.12855178,138.8,138.77,0.71229878]
[1768277676216,15.28855178,138.81,138.77,0.71229878]
[1768277677823,15.28855178,138.81,138.78,0.71229878]
[1768277678425,0.03960001,138.8,138.77,9.33471993]
[1768277678821,15.28855178,138.81,138.78,0.71229878]
[1768277679129,2.12855178,138.81,138.78,0.71229878]
[1768277679921,0.04428526,138.8,138.77,9.33471993]
[1768277680304,22.49218117,138.82,138.78,0.71229878]
[1768277681741,15.28855178,138.82,138.79,0.71229878]
[1768277683316,13.16,138.82,138.79,0.71229878]
[1768277683634,15.38755178,138.82,138.78,7.20556655]
[1768277684014,0.50871896,138.81,138.78,7.20556655]
[1768277684834,15.28855178,138.82,138.79,0.71229878]
[1768277686030,0.50871896,138.81,138.78,9.33411833]
[1768277686531,15.28855178,138.82,138.79,0.71229878]
[1768277686828,0.51285754,138.81,138.78,9.33411833]
[1768277687528,2.12855178,138.82,138.78,9.33411833]
[1768277687735,2.12855178,138.82,138.79,0.71229878]
[1768277687916,12.67618936,138.82,138.77,0.71229878]
[1768277688121,2.12855178,138.81,138.77,0.71229878]
[1768277688737,2.12855178,138.8,138.77,0.71229878]
[1768277689234,2.12855178,138.81,138.77,0.71229878]
[1768277689530,7.71242836,138.82,138.77,0.71229878]
[1768277689742,2.12855178,138.81,138.77,0.71229878]
[1768277690032,0.10309719,138.8,138.76,10.04720894]
[1768277690827,2.12855178,138.81,138.77,0.71229878]
[1768277691334,3.32385427,138.83,138.79,0.71229878]
[1768277692329,28.84932642,138.84,138.79,0.71229878]
[1768277694928,0.50871896,138.83,138.78,10.52935659]
[1768277695127,0.10309719,138.82,138.78,3.32385427]
[1768277695314,0.10309719,138.82,138.77,10.53000761]
[1768277695513,0.10309719,138.82,138.78,7.20563917]
[1768277695922,0.10309719,138.82,138.78,10.52949344]
[1768277696641,7.20310438,138.83,138.79,0.71229878]
[1768277697338,10.52695865,138.83,138.79,0.71229878]
[1768277697739,7.20310438,138.83,138.79,0.71229878]
[1768277697933,10.52695865,138.83,138.79,0.71229878]
[1768277700146,0.099,138.82,138.77,10.52984195]
[1768277700347,0.099,138.82,138.77,11.24214073]
[1768277700844,10.52695865,138.83,138.78,0.71229878]
[1768277701345,0.10309719,138.82,138.77,10.52984195]
[1768277701545,0.10309719,138.82,138.77,11.24214073]
[1768277702130,10.52695865,138.83,138.73,0.71229878]
[1768277702131,0.11104859,138.78,138.73,0.71229878]
[1768277702441,3.32385427,138.79,138.75,0.71229878]
[1768277703527,3.32385427,138.78,138.75,0.71229878]
[1768277703842,4.963761,138.8,138.75,11.24331099]
[1768277704045,16.48385427,138.8,138.76,0.71229878]
[1768277706455,16.48385427,138.8,138.77,0.71835464]
[1768277706968,13.16,138.8,138.77,0.71835464]
[1768277707264,7.20370368,138.82,138.77,0.71835464]
[1768277707452,10.92633881,138.82,138.78,0.71835464]
[1768277707654,24.08633881,138.82,138.78,0.71835464]
[1768277709057,23.68755795,138.82,138.78,0.71835464]
[1768277710144,0.39878086,138.81,138.77,3.32385427]
[1768277710353,0.39878086,138.81,138.77,4.04220891]
[1768277710858,0.39878086,138.81,138.77,11.24830073]
[1768277711068,23.68755795,138.82,138.78,0.71835464]
[1768277716270,16.48385427,138.82,138.78,0.71835464]
[1768277717567,16.48385427,138.82,138.79,0.706053]
[1768277718571,3.32385427,138.81,138.79,0.706053]
[1768277719065,0.1019978,138.8,138.78,7.20541289]
[1768277719263,13.16,138.82,138.79,0.706053]
[1768277719452,0.05950083,138.8,138.78,6.84610091]
[1768277719762,3.32385427,138.8,138.75,18.01731362]
[1768277719969,3.32385427,138.79,138.76,7.20622138]
[1768277720362,3.29385428,138.79,138.76,7.20622138]
[1768277721769,3.29385428,138.79,138.76,7.91227438]
[1768277721971,3.32385427,138.8,138.76,7.91227438]
[1768277722351,3.32385427,138.8,138.77,0.706053]
[1768277722664,20.3637149,138.82,138.77,0.706053]
[1768277722665,3.32385427,138.81,138.77,0.706053]
[1768277723469,10.52807024,138.81,138.77,0.706053]
[1768277723656,3.32385427,138.8,138.77,0.706053]
[1768277724758,3.32385427,138.8,138.77,0.427053]
[1768277725586,3.32385427,138.78,138.77,0.427053]
[1768277725762,3.29385428,138.78,138.77,0.427053]
[1768277726555,16.48385427,138.79,138.77,0.427053]
[1768277727076,0.27460275,138.78,138.75,7.20718336]
[1768277727859,16.48385427,138.79,138.75,7.20718336]
[1768277728984,13.16,138.79,138.75,7.20718336]
[1768277729275,16.48385427,138.79,138.76,0.706053]
[1768277730191,16.48385427,138.79,138.75,7.20718336]
[1768277730687,23.68903945,138.79,138.74,10.53138563]
[1768277731481,16.48385427,138.79,138.74,10.53138563]
[1768277732180,3.32385427,138.77,138.72,4.02990727]
[1768277732355,3.32385427,138.77,138.71,8.6745308]
[1768277732356,3.32385427,138.75,138.7,4.02990727]
[1768277732560,3.32385427,138.74,138.7,0.706053]
[1768277732761,3.32385427,138.75,138.71,0.706053]
[1768277733171,3.32385427,138.74,138.71,0.706053]
[1768277733378,3.32385427,138.75,138.72,0.706053]
[1768277735290,3.32385427,138.75,138.71,7.2091002]
[1768277735788,3.29385425,138.75,138.7,11.22642939]
[1768277736103,20.36668983,138.76,138.7,11.22642939]
[1768277736389,3.32385427,138.75,138.71,0.69293889]
[1768277738687,23.6905441,138.76,138.72,0.69293889]
[1768277739490,3.32385427,138.75,138.72,0.69293889]
[1768277740285,3.32385427,138.75,138.71,10.53273784]
[1768277741193,20.36668983,138.76,138.71,10.53273784]
[1768277741382,3.32385427,138.75,138.71,10.53273784]
[1768277741888,3.32385427,138.78,138.74,3.32385427]
[1768277742696,13.16,138.79,138.74,3.32385427]
[1768277742896,3.32385427,138.78,138.74,3.32385427]
[1768277743392,3.32385427,138.78,138.74,4.01679316]
[1768277743690,23.68933385,138.79,138.75,0.69293889]
[1768277743897,23.68855396,138.8,138.76,0.69293889]
[1768277744588,20.36469969,138.8,138.76,0.69293889]
[1768277744891,16.48385427,138.8,138.76,4.01679316]
[1768277745189,13.16,138.8,138.77,0.69293889]
[1768277745384,13.16,138.8,138.78,0.69293889]
[1768277745569,13.16,138.8,138.77,3.32385427]
[1768277745778,13.16,138.8,138.77,0.69293889]
[1768277747100,16.48385427,138.8,138.77,0.69293889]
[1768277749188,13.16,138.8,138.77,0.69293889]
[1768277749486,10.52761449,138.82,138.78,0.69293889]
[1768277749677,23.68761449,138.82,138.77,11.22290665]
[1768277749991,23.68761449,138.82,138.77,7.89905238]
[1768277750193,3.32385427,138.81,138.77,4.01679316]
[1768277750379,3.32385427,138.81,138.78,0.69293889]
[1768277750896,3.32385427,138.79,138.76,0.69293889]
[1768277751390,2.12849536,138.79,138.75,7.20704353]
[1768277751696,7.2042368,138.81,138.74,20.83969397]
[1768277751697,7.2042368,138.81,138.74,2.82143425]
[1768277751870,2.12849536,138.79,138.74,2.82143425]
[1768277752074,2.12849536,138.79,138.74,10.02882743]
[1768277752691,2.12849536,138.79,138.75,0.69293889]
[1768277753201,15.28849536,138.79,138.74,9.33588854]
[1768277753796,15.28849536,138.79,138.74,10.02882743]
[1768277754491,22.49365583,138.79,138.74,10.02882743]
[1768277755489,22.49365583,138.79,138.75,0.69293889]
[1768277756203,13.16,138.79,138.75,0.69293889]
[1768277756397,13.16,138.79,138.76,0.69293889]
[1768277757702,11.71,138.79,138.78,0.69293889]
[1768277758282,11.71,138.79,138.76,0.69293889]
[1768277758481,9.33327368,138.8,138.76,0.69293889]
[1768277759208,2.12849536,138.81,138.77,2.82143425]
[1768277759409,0.71081448,138.8,138.77,2.12849536]
[1768277759901,0.71081448,138.8,138.77,9.33452437]
[1768277760307,13.16,138.81,138.78,2.82143425]
[1768277760801,0.71081448,138.82,138.78,2.82143425]
[1768277761106,0.71081448,138.82,138.79,0.69293889]
[1768277761304,15.28849536,138.83,138.79,0.69293889]
[1768277761487,15.28849536,138.83,138.8,0.69293889]
[1768277762093,22.49157951,138.83,138.8,0.69293889]
[1768277762293,2.12849536,138.82,138.8,0.69293889]
[1768277762702,2.12849536,138.81,138.78,0.69293889]
[1768277763090,0.71081448,138.82,138.78,0.69293889]
[1768277763292,2.12849536,138.81,138.78,0.69293889]
[1768277764012,0.71081448,138.82,138.78,0.69293889]
[1768277764013,10.04294802,138.82,138.78,0.69293889]
[1768277764486,23.20294802,138.82,138.78,0.69293889]
[1768277765110,2.12849536,138.81,138.78,0.69293889]
[1768277765292,21.07445266,138.82,138.78,0.69293889]
[1768277765486,21.07445266,138.82,138.78,2.82143425]
[1768277767415,0.72168161,138.81,138.78,2.12849536]
[1768277769121,0.72168161,138.81,138.78,2.81273711]
[1768277770306,0.72168161,138.81,138.78,2.12849536]
[1768277770703,21.08531979,138.82,138.78,2.81273711]
[1768277772133,0.72168161,138.81,138.78,2.12849536]
[1768277772436,21.08531979,138.82,138.79,0.68424175]
[1768277773421,21.08531979,138.82,138.78,2.81273711]
[1768277773936,0.72023312,138.81,138.78,0.68424175]
[1768277774616,0.72023312,138.81,138.77,2.12849536]
[1768277774807,23.21236666,138.82,138.78,0.70001808]
[1768277775430,0.72023312,138.81,138.77,2.12849536]
[1768277776633,0.72023312,138.81,138.74,18.01897642]
[1768277776634,0.72023312,138.79,138.75,7.20720356]
[1768277776923,0.72023312,138.79,138.75,10.035717]
[1768277777300,2.84872848,138.8,138.76,0.70001808]
[1768277777519,0.72023312,138.8,138.76,2.82851344]
[1768277777712,10.05322336,138.81,138.77,0.70001808]
[1768277777918,7.924728,138.81,138.77,2.82851344]
[1768277778323,0.72023312,138.81,138.78,0.70001808]
[1768277778539,13.88023312,138.81,138.78,0.70001808]
[1768277778825,10.05238472,138.82,138.78,2.82851344]
[1768277779017,21.08388936,138.82,138.78,2.82851344]
[1768277780112,23.21238472,138.82,138.78,0.70001808]
[1768277780314,0.72023312,138.81,138.78,0.70001808]
[1768277780625,2.84872848,138.81,138.78,0.70001808]
[1768277781928,2.84872848,138.79,138.73,0.70001808]
[1768277782114,2.84872848,138.78,138.74,0.70001808]
[1768277782809,0.72023312,138.78,138.74,0.70001808]
[1768277783129,7.92600409,138.78,138.74,2.82851344]
[1768277783728,0.72023312,138.77,138.74,2.12849536]
[1768277784035,7.20577097,138.78,138.75,0.70001808]
[1768277784410,0.72023312,138.77,138.74,2.12849536]
[1768277784611,7.20577097,138.78,138.75,0.70001808]
[1768277784909,16.00872848,138.79,138.75,2.82851344]
[1768277784910,23.21403051,138.79,138.75,2.82851344]
[1768277785415,0.72023312,138.78,138.75,2.12849536]
[1768277785615,22.49379739,138.79,138.76,0.70001808]
[1768277785812,7.20461958,138.8,138.76,0.70001808]
[1768277786015,5.24808414,138.81,138.78,2.82851344]
[1768277786016,13.16,138.81,138.78,2.82851344]
[1768277787617,13.16,138.81,138.79,0.70001808]
[1768277788018,7.20376049,138.82,138.79,0.70001808]
[1768277788620,20.36376049,138.82,138.79,0.70001808]
[1768277791034,0.72023312,138.81,138.78,2.12849536]
[1768277791338,0.72023312,138.8,138.75,7.20703227]
[1768277791535,0.72023312,138.8,138.75,9.33552763]
[1768277791536,0.72023312,138.79,138.75,9.33552763]
[1768277791736,0.72023312,138.78,138.75,7.20703227]
[1768277792723,15.28849536,138.79,138.75,7.90705035]
[1768277792922,13.88023312,138.79,138.75,10.03554571]
[1768277793136,13.88023312,138.79,138.76,2.12849536]
[1768277793529,13.16,138.79,138.77,2.82851344]
[1768277793830,0.72023312,138.8,138.77,2.12849536]
[1768277794838,13.16,138.81,138.77,0.70270145]
[1768277795039,13.16,138.81,138.78,2.12849536]
[1768277795214,13.16,138.81,138.77,2.83119681]
[1768277795420,13.16,138.81,138.78,0.70270145]
[1768277795620,13.16,138.81,138.77,2.12849536]
[1768277796123,13.16,138.81,138.78,2.12849536]
[1768277798347,13.16,138.81,138.79,2.12849536]
[1768277799348,13.16,138.81,138.78,10.03677092]
[1768277799945,13.16,138.81,138.79,0.70270145]
[1768277800649,13.16,138.81,138.79,2.83119681]
[1768277801747,13.16,138.81,138.79,0.70270145]
[1768277801947,13.16,138.81,138.76,2.12849536]
[1768277801948,7.53582864,138.81,138.76,2.83119681]
[1768277802244,2.7966612,138.8,138.76,0.70270145]
[1768277803340,2.12849536,138.8,138.76,0.70270145]
[1768277803664,10.01157309,138.81,138.76,0.70270145]
[1768277803948,10.01157309,138.81,138.76,2.83119681]
[1768277804740,0.15405664,138.8,138.76,2.12849536]
[1768277805546,2.12849536,138.8,138.76,2.83119681]
[1768277805855,2.12849536,138.8,138.77,0.70270145]
[1768277806364,9.33302173,138.81,138.77,0.70270145]
[1768277807426,10.00539512,138.82,138.78,0.70270145]
[1768277807635,9.33208871,138.82,138.78,0.70270145]
[1768277807840,9.49133785,138.82,138.78,2.12849536]
[1768277808039,9.49133785,138.82,138.78,2.83119681]
[1768277808349,9.33208871,138.82,138.79,0.70270145]
[1768277808756,10.00539512,138.82,138.78,0.70270145]
[1768277809055,9.33208871,138.82,138.78,0.70270145]
[1768277809960,0.15924914,138.81,138.77,2.12849536]
[1768277810260,2.2877445,138.81,138.77,0.70270145]
[1768277810458,2.12849536,138.81,138.77,0.70270145]
[1768277810831,2.2877445,138.81,138.77,0.70270145]
[1768277811035,2.2877445,138.81,138.76,2.12849536]
[1768277811036,0.67330641,138.79,138.75,22.49553486]
[1768277811252,2.12849536,138.8,138.76,0.70270145]
[1768277811445,3.32561264,138.8,138.76,0.70270145]
[1768277811945,3.32561264,138.81,138.77,0.70270145]
[1768277812747,10.52975141,138.81,138.77,0.70270145]
[1768277814342,10.52938499,138.82,138.78,0.70270145]
[1768277814873,7.20377235,138.82,138.78,0.70270145]
[1768277815038,3.32561264,138.82,138.78,0.70270145]
[1768277815460,3.32561264,138.82,138.77,10.53176859]
[1768277815763,3.32561264,138.82,138.77,11.23447004]
[1768277815955,3.32561264,138.82,138.78,0.70270145]
[1768277816159,3.32561264,138.82,138.77,7.9088574]
[1768277816460,3.32561264,138.82,138.78,0.70270145]
[1768277817262,12.45126656,138.83,138.78,0.70270145]
[1768277817459,3.32561264,138.82,138.78,0.70270145]
[1768277818449,3.32561264,138.82,138.77,11.23447004]
[1768277819460,3.32561264,138.82,138.78,0.70270145]
[1768277819665,3.32561264,138.82,138.77,11.23447004]
[1768277819968,3.32561264,138.82,138.78,0.70270145]
[1768277820268,10.52928115,138.82,138.78,0.70270145]
[1768277820861,3.32561264,138.81,138.78,0.70270145]
[1768277821661,3.32561264,138.81,138.76,4.02831409]
[1768277822066,3.32561264,138.81,138.77,0.70270145]
[1768277822266,7.20366851,138.82,138.77,0.70270145]
[1768277822482,3.32561264,138.81,138.77,0.70270145]
[1768277822644,3.32561264,138.82,138.78,0.70270145]
[1768277822842,12.4512722,138.83,138.79,0.70270145]
[1768277822843,15.77688484,138.83,138.79,0.70270145]
[1768277824470,15.77688484,138.83,138.78,3.32561264]
[1768277824975,15.77688484,138.83,138.78,4.04695945]
[1768277825172,15.77688484,138.83,138.79,0.72134681]
[1768277827580,15.77688484,138.83,138.78,3.32561264]
[1768277827871,10.52926593,138.82,138.77,4.04695945]
[1768277828042,10.52926593,138.82,138.78,0.72134681]
[1768277828877,10.52926593,138.82,138.77,3.32561264]
[1768277829260,3.32561264,138.81,138.77,0.72134681]
[1768277830061,10.53003454,138.81,138.76,3.32561264]
[1768277830260,10.53003454,138.81,138.76,4.04695945]
[1768277830585,10.53003454,138.81,138.76,3.32561264]
[1768277830799,10.53003454,138.81,138.77,0.72134681]
[1768277830955,10.53003454,138.81,138.76,3.32561264]
[1768277831160,10.52925945,138.82,138.77,4.04695945]
[1768277831384,10.52925945,138.82,138.78,0.72134681]
[1768277831696,10.52925945,138.82,138.77,3.32561264]
[1768277831894,10.52925945,138.82,138.77,4.04695945]
[1768277832055,10.81316204,138.83,138.78,4.04695945]
[1768277832258,10.81316204,138.83,138.79,0.72134681]
[1768277832492,10.81316204,138.83,138.78,3.32561264]
[1768277832698,7.4875494,138.83,138.78,4.04695945]
[1768277832874,10.81316204,138.83,138.78,4.04695945]
[1768277833720,10.81316204,138.83,138.79,0.67428935]
[1768277833899,10.81316204,138.83,138.78,3.99990199]
[1768277834197,7.4875494,138.83,138.79,0.67428935]
[1768277834358,10.81316204,138.83,138.79,0.67428935]
[1768277835711,10.81316204,138.83,138.78,3.32561264]
[1768277835884,10.81316204,138.83,138.78,3.99990199]
[1768277836997,10.52918711,138.82,138.78,0.67428935]
[1768277837311,10.52918711,138.82,138.77,3.32561264]
[1768277837519,10.52918711,138.82,138.77,3.99990199]
[1768277839912,3.60993578,138.81,138.77,0.67428935]
[1768277840509,3.60993578,138.81,138.76,0.67428935]
[1768277840682,3.60993578,138.81,138.77,0.67428935]
[1768277840887,3.32561264,138.8,138.77,0.67428935]
[1768277841983,3.32561264,138.8,138.76,3.99990199]
[1768277842301,3.32561264,138.8,138.77,0.67428935]
[1768277842805,10.53023973,138.8,138.75,3.99990199]
[1768277843103,3.32561264,138.79,138.75,0.67428935]
[1768277843481,7.20462709,138.8,138.75,0.67428935]
[1768277843696,10.53023973,138.8,138.76,0.67428935]
[1768277844402,10.53023973,138.8,138.75,3.32561264]
[1768277844577,10.53023973,138.8,138.76,0.67428935]
[1768277846102,3.60993578,138.79,138.74,3.32561264]
[1768277846305,3.60993578,138.79,138.75,0.67428935]
[1768277846601,3.60993578,138.79,138.76,0.67428935]
[1768277847096,3.60993578,138.79,138.75,3.32561264]
[1768277847097,3.60993578,138.79,138.72,23.69424101]
[1768277847301,3.60993578,138.79,138.75,3.32561264]
[1768277847491,10.53023973,138.8,138.76,3.32561264]
[1768277848003,10.53023973,138.8,138.77,0.67428935]
[1768277848484,10.53023973,138.8,138.76,3.32561264]
[1768277848687,10.53023973,138.8,138.77,0.67428935]
[1768277848881,10.53023973,138.8,138.76,3.32561264]
[1768277849081,10.53023973,138.8,138.77,0.67428935]
[1768277849277,10.53023973,138.8,138.76,3.32561264]
[1768277850006,10.53023973,138.8,138.76,3.99990199]
[1768277850805,10.53023973,138.8,138.77,0.67428935]
[1768277851110,10.53023973,138.8,138.76,3.99990199]
[1768277851410,3.32561264,138.79,138.76,0.67428935]
[1768277851779,10.53080604,138.79,138.74,3.32561264]
[1768277851995,10.53080604,138.79,138.73,0.67428935]